fUSD/lending_fUSD_20250618
["ID","MTS","AMOUNT","RATE_DAILY","PERIOD"]
[366416053,1750237846230,-490.0,0.00016438,2]
[366416055,1750237846240,-490.0,0.00016438,2]
[366416057,1750237846249,-3319.71,0.00016438,2]
[366416059,1750237846258,-490.0,0.00016438,2]
[366416061,1750237846268,-1242.3,0.00016438,2]
[366416063,1750237846279,-1275.36,0.00016438,2]
[366416065,1750237846288,-8130.55,0.00016438,2]
[366416067,1750237846297,-490.0,0.00016438,2]
[366416069,1750237846306,-494.55659029,0.00016438,2]
[366416071,1750237846316,-490.0,0.00016438,2]
[366416073,1750237846325,-490.0,0.00016438,2]
[366416075,1750237846336,-490.61705479,0.00016438,2]
[366416077,1750237846346,-2651.13,0.00016438,2]
[366416079,1750237846355,-1132.66,0.00016438,2]
[366416081,1750237846365,-1360.95,0.00016438,2]
[366416083,1750237846374,-8499.43,0.00016438,2]
[366416085,1750237846384,-490.0,0.00016438,2]
[366416087,1750237846392,-1798.42,0.00016438,2]
[366416089,1750237846402,-2507.35,0.00016438,2]
[366416090,1750237846411,-490.0,0.00016438,2]
[366416091,1750237846421,-6755.96,0.00016438,2]
[366416092,1750237846431,-719.05,0.00016438,2]
[366416093,1750237846440,-2109.14,0.00016438,2]
[366416094,1750237846449,-676.3,0.00016438,2]
[366416095,1750237846458,-500.0,0.00016438,2]
[366416096,1750237846469,-500.0,0.00016438,2]
[366416097,1750237846478,-490.0,0.00016438,2]
[366416099,1750237846488,-490.0,0.00016438,2]
[366416100,1750237846498,-500.0,0.00016438,2]
[366416101,1750237846507,-1536.87,0.00016438,2]
[366416102,1750237846517,-427.76986138,0.00016438,2]
[366416103,1750237846526,-995.01,0.00016438,2]
[366416104,1750237846535,-3551.83,0.00016438,2]
[366416105,1750237846545,-1744.84,0.00016438,2]
[366416106,1750237846554,-625.36,0.00016438,2]
[366416107,1750237846564,-490.0,0.00016438,2]
[366416108,1750237846573,-2358.75,0.00016438,2]
[366416109,1750237846582,-558.05,0.00016438,2]
[366416110,1750237846592,-3308.86,0.00016438,2]
[366416111,1750237846601,-4677.08,0.00016438,2]
[366416112,1750237846610,-490.0,0.00016438,2]
[366416113,1750237846620,-495.70409083,0.00016438,2]
[366416114,1750237846630,-490.0,0.00016438,2]
[366416115,1750237846639,-490.0,0.00016438,2]
[366416116,1750237846649,-652.93,0.00016438,2]
[366416117,1750237846658,-1175.32,0.00016438,2]
[366416118,1750237846667,-491.04940696,0.00016438,2]
[366416119,1750237846677,-490.0,0.00016438,2]
[366416120,1750237846686,-490.0,0.00016438,2]
[366416121,1750237846695,-495.21041319,0.00016438,2]
[366416122,1750237846705,-3135.19,0.00016438,2]
[366416123,1750237846716,-490.0,0.00016438,2]
[366416124,1750237846725,-697.11,0.00016438,2]
[366416125,1750237846736,-1890.86,0.00016438,2]
[366416126,1750237846745,-2410.41,0.00016438,2]
[366416127,1750237846756,-490.0,0.00016438,2]
[366416128,1750237846766,-1171.59,0.00016438,2]
[366416129,1750237846776,-558.25,0.00016438,2]
[366416130,1750237846786,-490.0,0.00016438,2]
[366416131,1750237846796,-490.0,0.00016438,2]
[366416132,1750237846805,-1172.56,0.00016438,2]
[366416133,1750237846815,-1070.52,0.00016438,2]
[366416134,1750237846824,-1120.85,0.00016438,2]
[366416135,1750237846834,-529.79,0.00016438,2]
[366416136,1750237846843,-1142.09,0.00016438,2]
[366416137,1750237846853,-490.0,0.00016438,2]
[366416138,1750237846862,-666.92,0.00016438,2]
[366416139,1750237846872,-1977.48,0.00016438,2]
[366416140,1750237846881,-490.0,0.00016438,2]
[366416141,1750237846891,-490.0,0.00016438,2]
[366416142,1750237846900,-490.0,0.00016438,2]
[366416143,1750237846910,-490.0,0.00016438,2]
[366416144,1750237846920,-21815.78,0.00016438,2]
[366416145,1750237846930,-1736.93,0.00016438,2]
[366416146,1750237846939,-6982.15,0.00016438,2]
[366416147,1750237846949,-490.0,0.00016438,2]
[366416149,1750237846958,-490.0,0.00016438,2]
[366416151,1750237846969,-490.0,0.00016438,2]
[366416153,1750237846978,-1836.41,0.00016438,2]
[366416155,1750237846988,-955.07,0.00016438,2]
[366416157,1750237846998,-490.0,0.00016438,2]
[366416159,1750237847007,-490.0,0.00016438,2]
[366416161,1750237847017,-2732.67,0.00016438,2]
[366416164,1750237847027,-490.0,0.00016438,2]
[366416166,1750237847036,-246.91465637,0.00016438,2]
[366416168,1750237847046,-490.0,0.00016438,2]
[366416170,1750237847056,-3871.64,0.00016438,2]
[366416172,1750237847065,-355.11619798,0.00016438,2]
[366416173,1750237847075,-1348.38,0.00016438,2]
[366416175,1750237847084,-527.97,0.00016438,2]
[366416177,1750237847094,-572.4,0.00016438,2]
[366416179,1750237847103,-780.73,0.00016438,2]
[366416181,1750237847112,-490.0,0.00016438,2]
[366416183,1750237847121,-3178.3,0.00016438,2]
[366416185,1750237847130,-1063.32,0.00016438,2]
[366416187,1750237847140,-2467.72,0.00016438,2]
[366416189,1750237847149,-575.41,0.00016438,2]
[366416191,1750237847158,-490.0,0.00016438,2]
[366416193,1750237847167,-490.0,0.00016438,2]
[366416194,1750237847177,-3765.01,0.00016438,2]
[366416195,1750237847186,-3666.6,0.00016438,2]
[366416196,1750237847196,-490.0,0.00016438,2]
[366416197,1750237847209,-874.98,0.00016438,2]
[366416198,1750237847219,-490.0,0.00016438,2]
[366416199,1750237847229,-593.49,0.00016438,2]
[366416200,1750237847239,-2353.95,0.00016438,2]
[366416201,1750237847248,-899.56,0.00016438,2]
[366416202,1750237847257,-2160.15,0.00016438,2]
[366416203,1750237847266,-490.0,0.00016438,2]
[366416204,1750237847276,-2195.85,0.00016438,2]
[366416205,1750237847285,-490.0,0.00016438,2]
[366416206,1750237847296,-7284.72,0.00016438,2]
[366416207,1750237847305,-2419.95,0.00016438,2]
[366416208,1750237847315,-787.27,0.00016438,2]
[366416209,1750237847325,-1010.35,0.00016438,2]
[366416210,1750237847335,-490.0,0.00016438,2]
[366416211,1750237847344,-490.0,0.00016438,2]
[366416212,1750237847354,-3578.77,0.00016438,2]
[366416213,1750237847363,-490.0,0.00016438,2]
[366416214,1750237847373,-663.69,0.00016438,2]
[366416215,1750237847382,-851.31,0.00016438,2]
[366416216,1750237847391,-490.0,0.00016438,2]
[366416217,1750237847399,-2486.55,0.00016438,2]
[366416219,1750237847409,-652.5,0.00016438,2]
[366416220,1750237847418,-1708.18,0.00016438,2]
[366416221,1750237847427,-1265.04,0.00016438,2]
[366416222,1750237847436,-490.0,0.00016438,2]
[366416223,1750237847446,-540.84,0.00016438,2]
[366416224,1750237847456,-490.0,0.00016438,2]
[366416225,1750237847466,-490.0,0.00016438,2]
[366416226,1750237847475,-490.0,0.00016438,2]
[366416227,1750237847485,-490.0,0.00016438,2]
[366416228,1750237847494,-995.45,0.00016438,2]
[366416229,1750237847504,-1307.17,0.00016438,2]
[366416230,1750237847513,-850.47,0.00016438,2]
[366416231,1750237847523,-2800.29,0.00016438,2]
[366416232,1750237847532,-490.0,0.00016438,2]
[366416233,1750237847541,-898.51,0.00016438,2]
[366416235,1750237847551,-7165.25,0.00016438,2]
[366416237,1750237847560,-490.0,0.00016438,2]
[366416239,1750237847570,-490.0,0.00016438,2]
[366416241,1750237847580,-3202.4,0.00016438,2]
[366416243,1750237847589,-841.8,0.00016438,2]
[366416245,1750237847599,-490.0,0.00016438,2]
[366416248,1750237847620,-490.0,0.00016438,2]
[366416250,1750237847630,-3115.34,0.00016438,2]
[366416252,1750237847639,-3115.34,0.00016438,2]
[366416254,1750237847650,-3115.34,0.00016438,2]
[366416256,1750237847660,-1008.69230574,0.00016438,2]
[366416258,1750237847670,-490.0,0.00016438,2]
[366416261,1750237847680,-1123.7,0.00016438,2]
[366416263,1750237847689,-4588.18,0.00016438,2]
[366416264,1750237847699,-490.0,0.00016438,2]
[366416266,1750237847709,-780.28,0.00016438,2]
[366416268,1750237847719,-1390.93,0.00016438,2]
[366416270,1750237847729,-1189.02,0.00016438,2]
[366416272,1750237847739,-1803.26,0.00016438,2]
[366416274,1750237847748,-490.0,0.00016438,2]
[366416276,1750237847758,-8986.06,0.00016438,2]
[366416278,1750237847768,-841.89,0.00016438,2]
[366416281,1750237847778,-571.03,0.00016438,2]
[366416283,1750237847787,-490.0,0.00016438,2]
[366416284,1750237847797,-981.11,0.00016438,2]
[366416287,1750237847807,-490.0,0.00016438,2]
[366416289,1750237847816,-1166.83,0.00016438,2]
[366416291,1750237847825,-1171.51,0.00016438,2]
[366416293,1750237847835,-1523.86,0.00016438,2]
[366416295,1750237847844,-3868.08,0.00016438,2]
[366416297,1750237847854,-1212.8,0.00016438,2]
[366416299,1750237847863,-1936.15,0.00016438,2]
[366416301,1750237847873,-3790.32,0.00016438,2]
[366416303,1750237847882,-490.0,0.00016438,2]
[366416305,1750237847892,-893.74,0.00016438,2]
[366416307,1750237847901,-1283.9,0.00016438,2]
[366416309,1750237847912,-490.0,0.00016438,2]
[366416311,1750237847921,-490.0,0.00016438,2]
[366416313,1750237847930,-1984.83,0.00016438,2]
[366416315,1750237847939,-492.00723609,0.00016438,2]
[366416317,1750237847949,-1419.59,0.00016438,2]
[366416319,1750237847958,-490.0,0.00016438,2]
[366416321,1750237847969,-1142.45,0.00016438,2]
[366416323,1750237847979,-7093.13,0.00016438,2]
[366416325,1750237847988,-552.52,0.00016438,2]
[366416327,1750237847997,-490.0,0.00016438,2]
[366416329,1750237848007,-490.0,0.00016438,2]
[366416331,1750237848016,-150.22613624,0.00016438,2]
[366416333,1750237848027,-1693.43637189,0.00016452,2]
[366416335,1750237848036,-500.0,0.00016459,2]
[366416337,1750237848046,-500.0,0.00016469,2]
[366416339,1750237848056,-500.0,0.00016473,2]
[366416341,1750237848073,-500.0,0.00016473,2]
[366416343,1750237848083,-500.0,0.00016473,2]
[366416345,1750237848093,-501.50722289,0.00016473,2]
[366416347,1750237848102,-503.88695915,0.00016473,2]
[366416350,1750237848112,-500.0,0.00016473,2]
[366416352,1750237848122,-500.0,0.00016473,2]
[366416354,1750237848131,-500.0,0.00016473,2]
[366416356,1750237848141,-501.09278441,0.00016473,2]
[366416358,1750237848151,-424.99863681,0.00016473,2]
[366416360,1750237848160,-1228.19883366,0.00016484,2]
[366416362,1750237848170,-1077.0,0.00016496,2]
[366416364,1750237848180,-1100.0,0.000165,6]
[366416365,1750237848190,-500.0,0.00016501,2]
[366416366,1750237848203,-3115.34,0.00016501,2]
[366416367,1750237848213,-1500.0,0.00016502,2]
[366416368,1750237848223,-160.5617667,0.00016502,2]
[366416369,1750237848233,-212.32221169,0.00016502,2]
[366416370,1750237848244,-2170.99577453,0.00016557,2]
[366416371,1750237848253,-1228.19883366,0.00016557,2]
[366416372,1750237848265,-168.0,0.00016561,2]
[366416373,1750237848276,-150.0,0.00016575,2]
[366416374,1750237848285,-150.00000001,0.00016575,2]
[366416375,1750237848294,-350.0,0.00016583,2]
[366416376,1750237848304,-1693.43637189,0.0001659,2]
[366416377,1750237848313,-2000.0,0.00016591,2]
[366416378,1750237848323,-168.0,0.00016592,2]
[366416379,1750237848333,-1717.11,0.000166,2]
[366416380,1750237848342,-3000.0,0.000166,2]
[366416381,1750237848352,-3000.0,0.000166,2]
[366416382,1750237848528,-2401.0,0.000166,2]
[366416383,1750237848538,-3000.0,0.000166,2]
[366416385,1750237848550,-603.38,0.000166,2]
[366416387,1750237848560,-1400.0,0.000166,6]
[366416389,1750237848570,-7000.0,0.000166,2]
[366416392,1750237848581,-2412.22990065,0.00016601,2]
[366416394,1750237848591,-1562.15,0.00016601,2]
[366416396,1750237848602,-1562.15,0.00016601,2]
[366416398,1750237848612,-1562.15,0.00016601,2]
[366416400,1750237848621,-1562.15,0.00016601,2]
[366416402,1750237848632,-1562.15,0.00016601,2]
[366416404,1750237848642,-1212.64,0.00016601,2]
[366416406,1750237848651,-1212.64,0.00016601,2]
[366416407,1750237848661,-1212.64,0.00016601,2]
[366416408,1750237848670,-1212.64,0.00016601,2]
[366416409,1750237848680,-1212.64,0.00016601,2]
[366416410,1750237848690,-150.0,0.00016601,2]
[366416411,1750237848699,-500.0,0.00016601,2]
[366416412,1750237848709,-500.0,0.00016601,2]
[366416413,1750237848719,-500.0,0.00016601,2]
[366416414,1750237848729,-500.0,0.00016601,2]
[366416415,1750237848739,-528.17280761,0.00016601,2]
[366416416,1750237848750,-3115.34,0.00016601,2]
[366416417,1750237848759,-3115.34,0.00016601,2]
[366416418,1750237848770,-3115.34,0.00016601,2]
[366416419,1750237848780,-3115.34,0.00016601,2]
[366416420,1750237848791,-3115.34,0.00016601,2]
[366416421,1750237848801,-666.0,0.00016601,2]
[366416422,1750237848811,-300.0,0.00016601,2]
[366416423,1750237848820,-300.0,0.00016601,2]
[366416424,1750237848830,-300.0,0.00016601,2]
[366416425,1750237848841,-300.0,0.00016601,2]
[366416426,1750237848850,-8242.61352445,0.00016602,2]
[366416427,1750237848860,-151.0,0.00016602,2]
[366416428,1750237848870,-151.0,0.00016602,2]
[366416429,1750237848880,-151.0,0.00016602,2]
[366416430,1750237848891,-151.0,0.00016602,2]
[366416431,1750237848901,-151.0,0.00016602,2]
[366416432,1750237848912,-151.0,0.00016602,2]
[366416433,1750237848921,-151.0,0.00016602,2]
[366416434,1750237848932,-151.0,0.00016602,2]
[366416435,1750237848942,-151.0,0.00016602,2]
[366416436,1750237848953,-151.0,0.00016602,2]
[366416437,1750237848963,-151.0,0.00016602,2]
[366416438,1750237848974,-490.0,0.00016602,2]
[366416439,1750237848984,-151.0,0.00016602,2]
[366416440,1750237848994,-151.0,0.00016602,2]
[366416441,1750237849004,-151.0,0.00016602,2]
[366416442,1750237849014,-153.732913,0.00016602,2]
[366416443,1750237849024,-151.0,0.00016602,2]
[366416444,1750237849034,-151.0,0.00016602,2]
[366416445,1750237849044,-151.0,0.00016602,2]
[366416446,1750237849054,-151.0,0.00016602,2]
[366416447,1750237849064,-151.0,0.00016602,2]
[366416448,1750237849074,-151.0,0.00016602,2]
[366416449,1750237849084,-291.502934,0.00016602,2]
[366416450,1750237849094,-656.717683,0.00016602,2]
[366416451,1750237849103,-656.717683,0.00016602,2]
[366416452,1750237849113,-656.717683,0.00016602,2]
[366416453,1750237849123,-656.717683,0.00016602,2]
[366416454,1750237849132,-151.0,0.00016602,2]
[366416455,1750237849142,-151.0,0.00016602,2]
[366416456,1750237849152,-151.0,0.00016602,2]
[366416457,1750237849162,-152.837842,0.00016602,2]
[366416458,1750237849171,-154.217819,0.00016602,2]
[366416459,1750237849181,-151.0,0.00016602,2]
[366416460,1750237849190,-151.0,0.00016602,2]
[366416461,1750237849202,-151.0,0.00016602,2]
[366416462,1750237849211,-151.0,0.00016602,2]
[366416463,1750237849222,-151.0,0.00016602,2]
[366416464,1750237849232,-151.0,0.00016602,2]
[366416465,1750237849243,-151.0,0.00016602,2]
[366416466,1750237849252,-151.0,0.00016602,2]
[366416467,1750237849262,-151.0,0.00016602,2]
[366416468,1750237849272,-151.0,0.00016602,2]
[366416469,1750237849284,-151.0,0.00016602,2]
[366416470,1750237849294,-151.0,0.00016602,2]
[366416471,1750237849305,-151.0,0.00016602,2]
[366416472,1750237849314,-151.0,0.00016602,2]
[366416473,1750237849325,-151.0,0.00016602,2]
[366416474,1750237849335,-490.0,0.00016602,2]
[366416475,1750237849345,-151.0,0.00016602,2]
[366416476,1750237849356,-490.0,0.00016602,2]
[366416477,1750237849366,-490.0,0.00016602,2]
[366416478,1750237849377,-490.0,0.00016602,2]
[366416479,1750237849395,-490.0,0.00016602,2]
[366416480,1750237849405,-681.49,0.00016602,2]
[366416481,1750237849415,-490.0,0.00016602,2]
[366416482,1750237849426,-490.0,0.00016602,2]
[366416483,1750237849436,-490.0,0.00016602,2]
[366416484,1750237849446,-638.58,0.00016602,2]
[366416485,1750237849456,-585.59,0.00016602,2]
[366416486,1750237849466,-490.0,0.00016602,2]
[366416487,1750237849479,-490.0,0.00016602,2]
[366416488,1750237849489,-589.8,0.00016602,2]
[366416489,1750237849499,-710.23,0.00016602,2]
[366416490,1750237849510,-490.0,0.00016602,2]
[366416491,1750237849520,-699.22,0.00016602,2]
[366416492,1750237849530,-490.0,0.00016602,2]
[366416493,1750237849539,-490.0,0.00016602,2]
[366416494,1750237849549,-560.05,0.00016602,2]
[366416495,1750237849559,-539.68,0.00016602,2]
[366416496,1750237849569,-797.8,0.00016602,2]
[366416497,1750237849579,-490.0,0.00016602,2]
[366416498,1750237849589,-490.0,0.00016602,2]
[366416499,1750237849599,-1373.23,0.00016602,2]
[366416500,1750237849609,-201.31721911,0.00016602,2]
[366416501,1750237849620,-973.68,0.00016602,2]
[366416502,1750237849630,-490.0,0.00016602,2]
[366416503,1750237849640,-490.0,0.00016602,2]
[366416504,1750237849650,-490.0,0.00016602,2]
[366416505,1750237849660,-490.0,0.00016602,2]
[366416506,1750237849669,-490.0,0.00016602,2]
[366416507,1750237849679,-490.0,0.00016602,2]
[366416508,1750237849689,-1400.83,0.00016602,2]
[366416509,1750237849698,-490.0,0.00016602,2]
[366416510,1750237849708,-490.0,0.00016602,2]
[366416511,1750237849718,-490.0,0.00016602,2]
[366416512,1750237849727,-490.0,0.00016602,2]
[366416513,1750237849737,-490.0,0.00016602,2]
[366416514,1750237849746,-490.0,0.00016602,2]
[366416515,1750237849755,-490.0,0.00016602,2]
[366416516,1750237849765,-490.0,0.00016602,2]
[366416517,1750237849775,-686.35,0.00016602,2]
[366416518,1750237849784,-490.0,0.00016602,2]
[366416519,1750237849794,-490.0,0.00016602,2]
[366416520,1750237849803,-490.0,0.00016602,2]
[366416521,1750237849813,-556.22,0.00016602,2]
[366416522,1750237849822,-490.0,0.00016602,2]
[366416523,1750237849832,-490.0,0.00016602,2]
[366416524,1750237849842,-490.0,0.00016602,2]
[366416525,1750237849851,-490.0,0.00016602,2]
[366416526,1750237849860,-490.0,0.00016602,2]
[366416527,1750237849870,-490.0,0.00016602,2]
[366416528,1750237849880,-734.24,0.00016602,2]
[366416529,1750237849889,-272.70687293,0.00016602,2]
[366416530,1750237849899,-490.0,0.00016602,2]
[366416531,1750237849909,-466.208577,0.00016602,2]
[366416532,1750237849920,-490.0,0.00016602,2]
[366416533,1750237849930,-490.0,0.00016602,2]
[366416534,1750237849939,-490.0,0.00016602,2]
[366416535,1750237849949,-490.0,0.00016602,2]
[366416536,1750237849959,-490.0,0.00016602,2]
[366416537,1750237849969,-490.0,0.00016602,2]
[366416538,1750237849978,-994.68,0.00016602,2]
[366416539,1750237849987,-490.0,0.00016602,2]
[366416540,1750237849997,-490.0,0.00016602,2]
[366416541,1750237850006,-490.0,0.00016602,2]
[366416542,1750237850015,-557.31,0.00016602,2]
[366416543,1750237850024,-490.0,0.00016602,2]
[366416544,1750237850034,-444.99662829,0.00016602,2]
[366416545,1750237850043,-490.0,0.00016602,2]
[366416546,1750237850052,-881.57,0.00016602,2]
[366416547,1750237850062,-490.0,0.00016602,2]
[366416548,1750237850071,-637.55,0.00016602,2]
[366416549,1750237850081,-474.65469258,0.00016602,2]
[366416550,1750237850091,-535.75,0.00016602,2]
[366416551,1750237850100,-490.0,0.00016602,2]
[366416552,1750237850110,-490.0,0.00016602,2]
[366416553,1750237850119,-828.47,0.00016602,2]
[366416554,1750237850129,-490.0,0.00016602,2]
[366416555,1750237850139,-1737.52,0.00016602,2]
[366416556,1750237850148,-490.0,0.00016602,2]
[366416557,1750237850158,-490.0,0.00016602,2]
[366416558,1750237850168,-972.47,0.00016602,2]
[366416559,1750237850178,-495.06889575,0.00016602,2]
[366416560,1750237850188,-490.0,0.00016602,2]
[366416561,1750237850200,-490.0,0.00016602,2]
[366416562,1750237850209,-604.64,0.00016602,2]
[366416563,1750237850224,-260.51643508,0.00016602,2]
[366416564,1750237850233,-1236.89,0.00016602,2]
[366416565,1750237850245,-151.0,0.00016602,2]
[366416566,1750237850254,-490.0,0.00016602,2]
[366416567,1750237850264,-490.0,0.00016602,2]
[366416568,1750237850274,-490.0,0.00016602,2]
[366416569,1750237850284,-490.0,0.00016602,2]
[366416570,1750237850293,-490.0,0.00016602,2]
[366416571,1750237850303,-490.0,0.00016602,2]
[366416572,1750237850312,-1133.96,0.00016602,2]
[366416573,1750237850321,-713.45,0.00016602,2]
[366416574,1750237850330,-490.0,0.00016602,2]
[366416575,1750237850343,-561.43,0.00016602,2]
[366416576,1750237850352,-490.0,0.00016602,2]
[366416577,1750237850361,-277.183252,0.00016602,2]
[366416578,1750237850370,-1154.86,0.00016602,2]
[366416579,1750237850380,-490.0,0.00016602,2]
[366416580,1750237850390,-490.0,0.00016602,2]
[366416581,1750237850400,-490.0,0.00016602,2]
[366416582,1750237850409,-503.1,0.00016602,2]
[366416583,1750237850419,-490.0,0.00016602,2]
[366416584,1750237850430,-490.0,0.00016602,2]
[366416585,1750237850439,-1090.79,0.00016602,2]
[366416586,1750237850449,-1427.85,0.00016602,2]
[366416587,1750237850459,-490.0,0.00016602,2]
[366416588,1750237850470,-490.0,0.00016602,2]
[366416589,1750237850480,-300.0,0.00016602,2]
[366416590,1750237850490,-490.0,0.00016602,2]
[366416591,1750237850501,-490.0,0.00016602,2]
[366416592,1750237850510,-577.69,0.00016602,2]
[366416593,1750237850519,-543.7,0.00016602,2]
[366416594,1750237850529,-490.0,0.00016602,2]
[366416595,1750237850539,-764.34,0.00016602,2]
[366416596,1750237850549,-1172.85,0.00016602,2]
[366416597,1750237850559,-490.0,0.00016602,2]
[366416598,1750237850569,-490.0,0.00016602,2]
[366416599,1750237850579,-537.37,0.00016602,2]
[366416600,1750237850588,-1034.43,0.00016602,2]
[366416601,1750237850598,-490.0,0.00016602,2]
[366416602,1750237850607,-700.76,0.00016602,2]
[366416603,1750237850617,-151.0,0.00016602,2]
[366416604,1750237850627,-490.0,0.00016602,2]
[366416605,1750237850637,-587.65,0.00016602,2]
[366416606,1750237850646,-1595.61,0.00016602,2]
[366416607,1750237850656,-490.0,0.00016602,2]
[366416608,1750237850666,-490.0,0.00016602,2]
[366416609,1750237850675,-743.89,0.00016602,2]
[366416610,1750237850685,-657.49,0.00016602,2]
[366416611,1750237850695,-490.0,0.00016602,2]
[366416612,1750237850705,-268.8,0.00016602,2]
[366416613,1750237850714,-490.0,0.00016602,2]
[366416614,1750237850724,-790.6,0.00016602,2]
[366416615,1750237851063,-1273.69,0.00016602,2]
[366416616,1750237851074,-1093.49,0.00016602,2]
[366416617,1750237851084,-699.73,0.00016602,2]
[366416618,1750237851093,-237.434341,0.00016602,2]
[366416619,1750237851102,-490.0,0.00016602,2]
[366416620,1750237851112,-676.07,0.00016602,2]
[366416621,1750237851121,-747.63,0.00016602,2]
[366416622,1750237851131,-658.85,0.00016602,2]
[366416623,1750237851140,-237.434341,0.00016602,2]
[366416624,1750237851150,-1085.42,0.00016602,2]
[366416625,1750237851160,-490.0,0.00016602,2]
[366416626,1750237851170,-490.0,0.00016602,2]
[366416627,1750237851180,-869.01,0.00016602,2]
[366416628,1750237851189,-776.64,0.00016602,2]
[366416629,1750237851202,-1281.89,0.00016602,2]
[366416630,1750237851211,-151.0,0.00016602,2]
[366416631,1750237851221,-490.0,0.00016602,2]
[366416632,1750237851231,-490.0,0.00016602,2]
[366416633,1750237851240,-490.0,0.00016602,2]
[366416634,1750237851250,-490.0,0.00016602,2]
[366416635,1750237851260,-493.42,0.00016602,2]
[366416636,1750237851271,-153.023233,0.00016602,2]
[366416637,1750237851282,-490.0,0.00016602,2]
[366416638,1750237851292,-490.0,0.00016602,2]
[366416639,1750237851302,-491.25,0.00016602,2]
[366416640,1750237851311,-1894.73,0.00016602,2]
[366416641,1750237851321,-490.0,0.00016602,2]
[366416642,1750237851330,-885.39,0.00016602,2]
[366416643,1750237851340,-490.0,0.00016602,2]
[366416644,1750237851356,-490.0,0.00016602,2]
[366416645,1750237851367,-151.73746,0.00016602,2]
[366416646,1750237851378,-490.0,0.00016602,2]
[366416647,1750237851388,-490.0,0.00016602,2]
[366416648,1750237851398,-1533.94,0.00016602,2]
[366416649,1750237851407,-490.0,0.00016602,2]
[366416650,1750237851417,-512.91,0.00016602,2]
[366416651,1750237851427,-490.0,0.00016602,2]
[366416652,1750237851437,-151.0,0.00016602,2]
[366416653,1750237851447,-1380.97,0.00016602,2]
[366416654,1750237851457,-490.0,0.00016602,2]
[366416655,1750237851472,-1270.61,0.00016602,2]
[366416656,1750237851482,-801.07,0.00016602,2]
[366416657,1750237851491,-490.0,0.00016602,2]
[366416658,1750237851501,-490.0,0.00016602,2]
[366416659,1750237851511,-151.0,0.00016602,2]
[366416660,1750237851521,-744.94,0.00016602,2]
[366416661,1750237851531,-490.0,0.00016602,2]
[366416662,1750237851540,-151.0,0.00016602,2]
[366416663,1750237851550,-490.0,0.00016602,2]
[366416664,1750237851560,-499.68101706,0.00016602,2]
[366416665,1750237852715,-386.82742039,0.00016438,2]
[366416666,1750237853488,-837.818,0.00015878,2]
[366416667,1750237853507,-327.192,0.00015878,2]
[366416668,1750237853518,-455.32,0.00015878,2]
[366416669,1750237853527,-150.0,0.00015878,2]
[366416670,1750237853537,-591.833,0.00016438,2]
[366416671,1750237853553,-265.75957961,0.00016438,2]
[366416672,1750237853563,-1391.56,0.00016438,2]
[366416673,1750237853573,-599.11898294,0.00016602,2]
[366416674,1750237853583,-490.0,0.00016602,2]